bitfinex-derivatives/quotes_SOLF0:USTF0_20250211
["timestamp","ask_amount","ask_price","bid_price","bid_amount"]
[1739284362542,35.52092387,199.22,199.05,35.79792387]
[1739284362741,0.03182953,199.1,199.07,0.03228981]
[1739284362938,35.52092387,199.19,199.04,1.5854]
[1739284363144,0.03343885,199.1,199.07,0.03622998]
[1739284363444,35.52092387,199.19,199.04,1.5854]
[1739284363644,35.52092387,199.22,199.04,1.5854]
[1739284363842,0.03270858,199.1,199.07,0.0374024]
[1739284364043,35.52092387,199.22,199.04,1.5854]
[1739284364238,5.02,199.18,199.12,5.021]
[1739284364441,5.02,199.18,199.08,35.52092387]
[1739284364637,0.03475318,199.15,199.08,35.52092387]
[1739284364846,0.03475318,199.15,199.11,0.03800872]
[1739284365047,0.03475318,199.15,199.14,5.0208]
[1739284365244,3.0707,199.27,199.14,35.52092387]
[1739284365746,5.0184,199.24,199.14,35.52092387]
[1739284365938,3.0707,199.27,199.14,35.52092387]
[1739284366242,3.0707,199.27,199.18,5.0195]
[1739284366243,5.0188,199.23,199.18,5.0195]
[1739284366449,0.03633341,199.22,199.19,0.03343439]
[1739284367443,0.03633341,199.22,199.11,35.52092387]
[1739284367649,0.03633341,199.22,199.08,35.52092387]
[1739284367949,5.0198,199.18,199.14,5.0208]
[1739284368249,5.0198,199.18,199.08,35.52092387]
[1739284368444,5.0204,199.16,199.08,35.52092387]
[1739284368645,0.03714723,199.15,199.11,0.03611418]
[1739284369043,5.02,199.18,199.08,35.52092387]
[1739284369240,0.0381009,199.15,199.11,0.03354489]
[1739284370056,0.0381009,199.15,199.11,5.05484489]
[1739284370352,0.0381009,199.15,199.11,0.03354489]
[1739284370850,0.0381009,199.15,199.14,5.0208]
[1739284371551,0.0381009,199.15,199.11,0.03354489]
[1739284371942,0.0381009,199.15,198.99,1.5934]
[1739284372349,35.52092387,199.15,198.99,37.11432387]
[1739284372751,5.0217,199.11,199.03,5.0233]
[1739284372951,35.52092387,199.15,198.99,37.11432387]
[1739284373148,35.52092387,199.15,199.05,0.03437931]
[1739284373149,0.03253824,199.09,199.05,0.03437931]
[1739284373553,0.03253824,199.09,199.05,5.05727931]
[1739284373755,0.03253824,199.09,199.05,0.03437931]
[1739284374855,0.03253824,199.09,199.05,35.55530318]
[1739284375054,0.03253824,199.09,199.08,35.52092387]
[1739284375453,0.03253824,199.09,199.08,40.54322387]
[1739284375758,0.03253824,199.09,199.08,5.0223]
[1739284375953,0.03253824,199.09,199.05,0.03437931]
[1739284377857,0.03253824,199.09,199.07,5.0225]
[1739284378058,0.03253824,199.09,199.05,0.03437931]
[1739284378458,0.03253824,199.09,199.08,5.0223]
[1739284380258,14.43222325,199.29,199.18,5.0198]
[1739284380259,35.52092387,199.27,199.18,5.0198]
[1739284380458,1.5503,199.26,199.11,35.52092387]
[1739284380757,1.5503,199.26,199.08,35.52092387]
[1739284380958,35.52092387,199.21,199.05,35.52092387]
[1739284381152,5.0209,199.14,199.02,229.52092387]
[1739284381353,35.52092387,199.18,199.02,35.52092387]
[1739284381563,0.03586943,199.1,199.06,0.03579653]
[1739284381763,5.0213,199.12,199.02,35.52092387]
[1739284381962,0.0383521,199.08,199.04,0.03415928]
[1739284382163,0.0383521,199.08,199.05,5.0229]
[1739284382368,0.0383521,199.08,199.04,0.03415928]
[1739284382663,0.0383521,199.08,199.04,5.05725928]
[1739284382862,0.0383521,199.08,199.04,0.03415928]
[1739284383264,0.0383521,199.08,199.05,5.0229]
[1739284383461,0.0383521,199.08,199.04,0.03415928]
[1739284383866,5.0226,199.07,199.04,0.03415928]
[1739284384266,35.52092387,199.06,198.92,22.34284118]
[1739284384463,5.0238,199.02,198.95,5.0253]
[1739284384666,1.5752,199.05,198.92,20.85624118]
[1739284385363,1.5752,199.05,198.97,0.03757263]
[1739284385662,5.0246,198.99,198.97,0.03757263]
[1739284385867,0.03550993,199.0,198.97,0.03757263]
[1739284386062,0.03550993,199.0,198.92,20.85624118]
[1739284387262,5.0248,198.99,198.89,35.52092387]
[1739284387568,35.52092387,199.0,198.83,35.52092387]
[1739284387761,35.52092387,199.03,198.86,35.52092387]
[1739284387965,35.52092387,199.03,198.8,35.52092387]
[1739284387966,0.03287848,198.96,198.95,5.0254]
[1739284388466,0.0319943,198.97,198.89,35.52092387]
[1739284388970,0.0319943,198.97,198.96,5.0253]
[1739284389172,1.5752,199.05,198.95,35.52092387]
[1739284389363,1.5752,199.05,198.92,35.52092387]
[1739284389567,0.03316342,199.02,198.89,35.52092387]
[1739284389762,1.5752,199.05,198.89,35.52092387]
[1739284389968,0.03778589,198.97,198.93,5.0259]
[1739284390171,1.5752,199.05,198.93,5.0259]
[1739284390367,0.03267541,198.97,198.89,35.52092387]
[1739284390562,1.5752,199.05,198.94,5.0256]
[1739284390763,0.03469547,198.99,198.89,35.52092387]
[1739284390963,0.03469547,198.99,198.84,194.3421]
[1739284390964,0.03469547,198.99,198.86,35.52092387]
[1739284391168,35.52092387,199.0,198.83,35.52092387]
[1739284391467,0.03801058,198.94,198.8,35.52092387]
[1739284391771,5.0256,198.95,198.9,5.0266]
[1739284391971,2.9388,198.96,198.9,5.0266]
[1739284392173,5.0262,198.93,198.88,5.0273]
[1739284392366,0.03321806,198.94,198.78,315.27574118]
[1739284392367,0.03321806,198.94,198.83,35.52092387]
[1739284392872,0.03345415,198.9,198.83,35.52092387]
[1739284393073,0.03345415,198.9,198.89,5.027]
[1739284394769,0.03345415,198.9,198.83,35.52092387]
[1739284395376,0.03345415,198.9,198.87,5.0274]
[1739284395675,0.03345415,198.9,198.83,35.52092387]
[1739284396075,0.03345415,198.9,198.89,5.0271]
[1739284396276,0.03345415,198.9,198.83,35.52092387]
[1739284396671,0.03345415,198.9,198.87,5.0275]
[1739284396876,0.03345415,198.9,198.8,35.52092387]
[1739284398074,0.03345415,198.9,198.83,35.52092387]
[1739284398377,1.4743,198.96,198.92,5.0261]
[1739284398679,1.51274199,198.96,198.92,5.0261]
[1739284398878,5.0256,198.95,198.9,5.0268]
[1739284399076,1.4743,198.96,198.83,35.52092387]
[1739284399281,0.03677446,198.94,198.8,35.52092387]
[1739284399482,35.52092387,198.95,198.78,284.36]
[1739284399772,0.03455822,198.89,198.78,284.36]
[1739284399979,0.03455822,198.89,198.78,90.36]
[1739284400279,0.03455822,198.89,198.8,35.52092387]
[1739284400478,0.03455822,198.89,198.83,35.52092387]
[1739284400975,0.03455822,198.89,198.88,5.0273]
[1739284402278,0.03455822,198.89,198.8,35.52092387]
[1739284402775,5.06185822,198.89,198.8,35.52092387]
[1739284402978,0.03455822,198.89,198.78,90.36]
[1739284403173,5.0279,198.86,198.73,3.0495]
[1739284403379,3.0764,198.85,198.77,5.0299]
[1739284403572,5.0288,198.83,198.77,5.0299]
[1739284403773,5.0288,198.83,198.73,3.0495]
[1739284403774,0.03333486,198.81,198.73,3.0495]
[1739284403979,0.03333486,198.81,198.79,5.0295]
[1739284404172,0.03333486,198.81,198.73,3.0495]
[1739284404375,0.03333486,198.81,198.74,35.52092387]
[1739284404672,0.03333486,198.81,198.79,5.0295]
[1739284404980,0.03333486,198.81,198.8,5.0294]
[1739284405372,35.52092387,198.94,198.77,35.52092387]
[1739284405575,3.0468,198.95,198.85,5.0281]
[1739284405776,3.0468,198.95,198.8,35.52092387]
[1739284405981,5.0269,198.9,198.8,35.52092387]
[1739284406180,3.0468,198.95,198.8,35.52092387]
[1739284406583,0.03604675,198.89,198.86,0.03765376]
[1739284407279,0.03604675,198.89,198.74,35.52092387]
[1739284407477,35.52092387,198.91,198.74,35.52092387]
[1739284408184,35.52092387,198.91,198.79,5.0296]
[1739284408684,0.03871146,198.87,198.79,5.0296]
[1739284408978,5.0288,198.83,198.79,5.0296]
[1739284409185,35.52092387,198.91,198.79,5.0296]
[1739284409388,0.03303266,198.83,198.82,5.0288]
[1739284409678,35.52092387,198.94,198.77,35.52092387]
[1739284409883,0.03320074,198.84,198.78,1.4732]
[1739284410185,3.0468,198.95,198.79,0.03805575]
[1739284410484,3.0468,198.95,198.8,35.52092387]
[1739284410884,3.0468,198.95,198.83,35.52092387]
[1739284411077,3.0468,198.95,198.91,5.0266]
[1739284411279,0.03479233,198.91,198.87,0.03766626]
[1739284411484,1.515,198.95,198.83,35.52092387]
[1739284411679,0.03167848,198.91,198.87,0.03569596]
[1739284412577,0.03167848,198.91,198.9,5.0268]
[1739284412985,1.5962,199.0,198.87,0.03569596]
[1739284413183,5.0246,198.99,198.9,5.0266]
[1739284413384,1.5962,199.0,198.87,1.4703]
[1739284413680,35.52092387,198.99,198.83,35.52092387]
[1739284413885,35.52092387,198.99,198.8,36.99122387]
[1739284414088,1.5962,199.0,198.86,35.52092387]
[1739284414288,0.03564301,198.91,198.88,0.03659313]
[1739284414487,1.5962,199.0,198.86,35.52092387]
[1739284414679,0.03380548,198.91,198.86,35.52092387]
[1739284414880,35.52092387,198.99,198.88,0.03230845]
[1739284415084,0.03847674,198.9,198.8,36.99122387]
[1739284415284,5.0261,198.93,198.92,0.0326318]
[1739284415483,3.0725,198.95,198.86,5.0278]
[1739284415686,0.03276471,198.94,198.91,0.03534981]
[1739284416490,0.03276471,198.94,198.8,36.99122387]
[1739284416781,3.0725,198.95,198.8,1.4703]
[1739284416987,35.52092387,198.93,198.77,35.52092387]
[1739284417184,5.0274,198.88,198.83,5.0286]
[1739284417389,35.52092387,198.93,198.77,35.52092387]
[1739284417586,0.0322215,198.87,198.84,0.03438442]
[1739284417779,0.0322215,198.87,198.84,5.06268442]
[1739284418885,0.0322215,198.87,198.86,5.0279]
[1739284419184,0.0322215,198.87,198.84,0.03438442]
[1739284419586,5.0599215,198.87,198.84,0.03438442]
[1739284419788,0.0322215,198.87,198.84,0.03438442]
[1739284420789,5.0279,198.86,198.84,0.03438442]
[1739284421192,0.0322215,198.87,198.84,0.03438442]
[1739284421385,5.028,198.86,198.84,0.03438442]
[1739284421588,0.0322215,198.87,198.84,0.03438442]
[1739284421890,5.0279,198.86,198.84,0.03438442]
[1739284422387,0.0322215,198.87,198.84,0.03438442]
[1739284422590,0.0322215,198.87,198.86,5.0279]
[1739284423992,0.0322215,198.87,198.84,5.06248442]
[1739284424390,0.0322215,198.87,198.84,0.03438442]
[1739284424590,0.0322215,198.87,198.85,5.028]
[1739284424892,0.0322215,198.87,198.84,0.03438442]
[1739284427192,5.0598215,198.87,198.84,5.06268442]
[1739284427397,0.0322215,198.87,198.84,0.03438442]
[1739284427792,0.0322215,198.87,198.86,5.0279]
[1739284428000,0.0322215,198.87,198.84,0.03438442]
[1739284428295,0.0322215,198.87,198.85,5.0279]
[1739284428598,0.0322215,198.87,198.84,0.03438442]
[1739284430097,0.0322215,198.87,198.86,5.0279]
[1739284431597,0.0322215,198.87,198.84,0.03438442]
[1739284431996,5.028,198.86,198.84,0.03438442]
[1739284432392,0.0322215,198.87,198.84,0.03438442]
[1739284432698,5.0281,198.85,198.84,0.03438442]
[1739284433197,0.0322215,198.87,198.84,0.03438442]
[1739284433598,5.0279,198.86,198.84,0.03438442]
[1739284433797,0.0322215,198.87,198.84,0.03438442]
[1739284434398,5.0599215,198.87,198.84,0.03438442]
[1739284434792,0.0322215,198.87,198.84,0.03438442]
[1739284436098,0.0322215,198.87,198.85,5.0281]
[1739284436402,0.0322215,198.87,198.84,0.03438442]
[1739284436694,0.0322215,198.87,198.86,5.0279]
[1739284436900,0.0322215,198.87,198.84,0.03438442]
[1739284437705,5.0598215,198.87,198.84,0.03438442]
[1739284438005,0.0322215,198.87,198.84,0.03438442]
[1739284438201,5.0281,198.85,198.84,0.03438442]
[1739284439308,21.8641698,198.87,198.73,36.31740248]
[1739284439511,25.0148483,198.84,198.74,5.0307]
[1739284440404,0.03190739,198.81,198.74,5.0307]
[1739284440809,0.03190739,198.81,198.7,21.8319483]
[1739284441009,3.1829,198.84,198.73,21.8319483]
[1739284441213,0.03448287,198.77,198.7,21.8319483]
[1739284441511,0.03448287,198.77,198.74,5.0308]
[1739284441705,0.03448287,198.77,198.7,21.8319483]
[1739284442107,0.03448287,198.77,198.74,5.0307]
[1739284442505,5.0274,198.88,198.81,5.029]
[1739284443216,5.0282,198.85,198.77,5.0299]
[1739284443411,21.8319483,198.9,198.73,21.8319483]
[1739284443607,0.03814171,198.83,198.8,5.06378287]
[1739284443808,21.8319483,198.9,198.8,0.03448287]
[1739284444113,3.0494,198.92,198.82,5.0287]
[1739284444114,5.0273,198.89,198.82,5.0287]
[1739284444309,0.03451089,198.87,198.79,21.8319483]
[1739284444514,3.0494,198.92,198.84,0.03448287]
[1739284444714,0.03667551,198.85,198.84,0.03448287]
[1739284445010,0.03435143,198.86,198.84,0.03448287]
[1739284445311,3.0494,198.92,198.84,0.03448287]
[1739284445510,0.03663041,198.87,198.85,21.8319483]
[1739284445709,24.8649483,199.02,198.85,23.4486483]
[1739284446016,5.0242,199.01,198.94,5.0257]
[1739284446416,26.3980483,199.02,198.85,23.4486483]
[1739284446611,5.0251,198.97,198.9,5.0268]
[1739284446808,0.03570719,198.95,198.92,0.03838749]
[1739284447007,5.0256,198.96,198.9,5.0268]
[1739284447320,0.03660411,198.95,198.82,21.8319483]
[1739284447515,21.8319483,198.99,198.82,21.8319483]
[1739284447809,41.4480483,199.02,198.82,21.8319483]
[1739284448015,26.3980483,199.02,198.82,21.8319483]
[1739284448311,0.03650931,198.94,198.9,0.03272578]
[1739284448712,0.03650931,198.94,198.91,5.0265]
[1739284449119,0.03650931,198.94,198.9,0.03272578]
[1739284449314,0.03650931,198.94,198.93,5.0261]
[1739284449521,43.11490071,199.1,198.94,21.8319483]
[1739284449721,3.0115,199.09,198.97,21.8319483]
[1739284450418,12.10597,199.1,199.0,21.8319483]
[1739284450618,0.03301376,199.05,199.01,0.03641633]
[1739284450921,0.03301376,199.05,199.02,5.0238]
[1739284451222,0.03301376,199.05,199.01,0.03641633]
[1739284451721,5.05611376,199.05,199.01,0.03641633]
[1739284452319,0.03301376,199.05,199.01,0.03641633]
[1739284453319,0.03301376,199.05,199.03,21.8319483]
[1739284453517,10.52337,199.1,199.03,21.8319483]
[1739284454222,10.52337,199.1,199.09,5.022]
[1739284454623,10.52337,199.1,199.06,21.8319483]
[1739284454921,10.52337,199.1,199.08,0.03641686]
[1739284455119,10.52337,199.1,199.03,21.8319483]
[1739284455311,10.52337,199.1,199.05,0.03314443]
[1739284455717,10.52337,199.1,199.06,5.0227]
[1739284455917,10.52337,199.1,199.05,0.03314443]
[1739284457321,13.68767,199.1,199.05,0.03314443]
[1739284458017,5.0222,199.09,199.05,0.03314443]
[1739284458225,13.68767,199.1,199.05,0.03314443]
[1739284458719,5.0223,199.09,199.05,0.03314443]
[1739284459424,10.52337,199.1,199.05,0.03314443]
[1739284459625,10.52337,199.1,199.06,21.8319483]
[1739284460320,10.52337,199.1,199.09,5.022]
[1739284460723,2.97157,199.1,199.09,26.8539483]
[1739284460920,0.03448499,199.11,199.1,5.0218]
[1739284461617,0.03448499,199.11,199.09,5.022]
[1739284461819,0.03448499,199.11,199.05,0.03314443]
[1739284462219,0.03448499,199.11,199.05,5.05614443]
[1739284462426,0.03448499,199.11,199.05,0.03314443]
[1739284463230,5.0228,199.06,199.05,0.03314443]
[1739284464328,5.0237,199.03,198.98,5.0248]
[1739284464730,2.9575,199.1,198.95,1.5837]
[1739284464927,5.0227,199.07,199.02,5.0238]
[1739284465131,2.9575,199.1,198.97,21.8319483]
[1739284465328,2.9575,199.1,198.95,1.5837]
[1739284465528,5.05594319,199.05,199.02,0.03861328]
[1739284465728,0.03284319,199.05,199.02,0.03861328]
[1739284466524,0.03284319,199.05,198.94,21.8319483]
[1739284467433,0.03284319,199.05,198.97,21.8319483]
[1739284467930,0.03324615,199.03,198.99,0.03049115]
[1739284468936,5.0243,199.0,198.99,0.03049115]
[1739284469133,5.0243,199.0,198.91,112.2519483]
[1739284469134,0.03324615,199.03,198.91,21.8319483]
[1739284469331,0.03324615,199.03,198.88,21.8319483]
[1739284469626,21.8319483,199.05,198.88,21.8319483]
[1739284470134,5.0248,198.99,198.94,5.0256]
[1739284470335,21.8319483,199.05,198.94,5.0256]
[1739284470535,0.03216475,198.98,198.88,21.8319483]
[1739284470837,5.05696475,198.98,198.93,5.0258]
[1739284471639,0.03216475,198.98,198.88,21.8319483]
[1739284472039,0.03216475,198.98,198.91,21.8319483]
[1739284472341,1.4817,199.04,198.91,21.8319483]
[1739284472530,0.03271723,198.96,198.94,21.8319483]
[1739284472728,1.4817,199.04,199.0,5.0241]
[1739284472934,2.9575,199.1,198.97,21.8319483]
[1739284473136,5.0223,199.09,199.04,5.0232]
[1739284473340,2.9575,199.1,199.0,21.8319483]
[1739284473736,2.9575,199.1,199.06,5.0227]
[1739284473934,0.03303138,199.07,199.06,5.0227]
[1739284474236,0.03303138,199.07,199.05,5.023]
[1739284474934,0.03303138,199.07,199.03,0.03271723]
[1739284474935,0.03303138,199.07,199.06,5.0228]
[1739284477937,0.03303138,199.07,199.03,0.03271723]
[1739284478541,0.03303138,199.07,199.04,5.0231]
[1739284478741,0.03303138,199.07,199.03,0.03271723]
[1739284479743,0.03303138,199.07,199.06,5.0228]
[1739284480642,0.03303138,199.07,199.04,5.0233]
[1739284481145,0.03303138,199.07,199.03,0.03271723]
[1739284481338,0.03303138,199.07,199.05,5.023]
[1739284481842,0.03303138,199.07,199.03,0.03271723]
[1739284484142,5.0229,199.06,199.03,5.05631723]
[1739284484345,0.03303138,199.07,199.03,0.03271723]
[1739284485738,0.03303138,199.07,198.94,21.8319483]
[1739284486043,21.8319483,199.07,198.91,23.4214483]
[1739284486245,21.8319483,199.07,198.96,5.0253]
[1739284486847,5.0246,198.99,198.96,5.0253]
[1739284487637,0.03668865,199.03,198.98,5.0246]
[1739284487841,24.7894483,199.1,198.91,23.4214483]
[1739284487842,24.7894483,199.1,198.94,21.8319483]
[1739284488046,0.03620903,199.02,198.94,21.8319483]
[1739284488241,0.03620903,199.02,198.99,5.0244]
[1739284488446,0.03620903,199.02,198.94,21.8319483]
[1739284488647,5.06000903,199.02,198.96,5.0252]
[1739284488948,5.06000903,199.02,198.94,21.8319483]
[1739284489147,5.06000903,199.02,198.96,5.0252]
[1739284489449,5.06000903,199.02,198.94,21.8319483]
[1739284489839,0.03620903,199.02,198.99,5.0245]
[1739284490443,5.0242,199.01,198.97,5.0251]
[1739284490950,0.03620903,199.02,198.94,21.8319483]
[1739284491248,5.0245,199.0,198.96,5.0253]
[1739284492044,0.03620903,199.02,198.94,21.8319483]
[1739284492250,24.7894483,199.1,198.94,21.8319483]
[1739284492441,0.03516115,199.0,198.94,21.8319483]
[1739284492645,24.7894483,199.1,198.94,21.8319483]
[1739284492848,0.03590981,198.99,198.94,21.8319483]
[1739284493044,24.7894483,199.1,198.94,21.8319483]
[1739284493243,2.9575,199.1,198.97,21.8319483]
[1739284493450,2.9575,199.1,199.0,21.8319483]
[1739284493647,5.0224,199.08,199.04,5.0231]
[1739284493846,2.9575,199.1,199.0,21.8319483]
[1739284494348,2.9575,199.1,199.04,5.0231]
[1739284494349,0.03758642,199.07,199.04,5.0231]
[1739284494549,0.03758642,199.07,199.03,0.03426802]
[1739284494850,0.03758642,199.07,199.04,5.0233]
[1739284495361,0.03758642,199.07,199.03,0.03426802]
[1739284495553,0.03758642,199.07,199.06,5.0228]
[1739284500755,0.03758642,199.07,199.03,0.03426802]
[1739284501151,0.03758642,199.07,199.06,5.0228]
[1739284501354,0.03758642,199.07,199.03,0.03426802]
[1739284502061,5.0233,199.04,199.03,0.03426802]
[1739284502656,0.03758642,199.07,198.95,20.85624118]
[1739284502950,1.6001,199.06,198.95,20.85624118]
[1739284503159,1.545,199.05,198.95,20.85624118]
[1739284503557,1.545,199.05,198.95,25.88174118]
[1739284503757,0.03331593,199.02,198.91,59.71161063]
[1739284504058,0.03331593,199.02,198.95,5.0254]
[1739284504259,0.03331593,199.02,198.91,59.71161063]
[1739284504260,0.03331593,199.02,198.94,21.8319483]
[1739284504453,0.03331593,199.02,198.97,21.8319483]
[1739284504657,0.03331593,199.02,199.01,5.0241]
[1739284505257,3.0357,199.13,199.0,21.8319483]
[1739284505459,3.0357,199.13,199.03,21.8319483]
[1739284505760,167.59849388,199.27,199.07,21.8319483]
[1739284505761,5.0196,199.19,199.07,21.8319483]
[1739284505957,1.5697,199.22,199.07,21.8319483]
[1739284506158,1.5697,199.22,199.12,5.0213]
[1739284506461,0.03285966,199.16,199.13,0.03534791]
[1739284508063,0.03285966,199.16,199.15,5.0205]
[1739284508559,81.89338026,199.23,199.14,21.8319483]
[1739284508760,81.89338026,199.23,199.17,21.8319483]
[1739284509462,6.6002,199.28,199.17,21.8319483]
[1739284509660,0.03322664,199.22,199.18,0.03368562]
[1739284509860,0.03322664,199.22,199.21,5.019]
[1739284510058,0.03322664,199.22,199.18,0.03368562]
[1739284512265,21.86517494,199.22,199.07,5.0223]
[1739284512465,1.5011,199.21,199.06,20.85624118]
[1739284512864,5.0205,199.16,199.06,20.85624118]
[1739284513367,1.5029,199.2,199.06,20.85624118]
[1739284513669,0.03325827,199.13,199.09,0.03452195]
[1739284515571,5.0218,199.1,199.09,0.03452195]
[1739284515869,0.03325827,199.13,199.09,0.03452195]
[1739284517170,0.03325827,199.13,199.1,5.0218]
[1739284517369,0.03325827,199.13,199.09,0.03452195]
[1739284519064,5.0218,199.1,199.09,0.03452195]
[1739284520476,5.0234,199.04,198.99,21.8319483]
[1739284520668,5.0234,199.04,198.96,24.8669483]
[1739284521375,5.0234,199.04,198.99,5.0244]
[1739284521566,5.024,199.02,198.96,24.8669483]
[1739284521770,5.024,199.02,198.96,21.8319483]
[1739284522079,5.0241,199.01,198.93,21.8319483]
[1739284522369,21.8319483,199.1,198.93,21.8319483]
[1739284522572,0.03358574,198.99,198.93,21.8319483]
[1739284522766,3.0414,199.09,198.93,21.8319483]
[1739284522965,0.03412197,198.98,198.94,5.0258]
[1739284523268,3.0414,199.09,198.91,3.0973]
[1739284523269,21.8319483,199.07,198.91,3.0973]
[1739284523470,0.03598471,198.98,198.91,3.0973]
[1739284524671,0.03598471,198.98,198.9,21.8319483]
[1739284524871,0.03598471,198.98,198.87,21.8319483]
[1739284525074,21.8319483,199.04,198.87,21.8319483]
[1739284525270,21.8319483,199.01,198.87,21.8319483]
[1739284525478,5.0255,198.96,198.88,5.0272]
[1739284525775,0.0356737,198.97,198.85,3.0801]
[1739284525972,0.0356737,198.97,198.91,5.0266]
[1739284526171,5.0249,198.98,198.91,5.0266]
[1739284526372,0.03273363,198.96,198.91,5.0266]
[1739284526669,0.03273363,198.96,198.92,5.0263]
[1739284526871,0.03273363,198.96,198.85,3.0801]
[1739284526872,0.03273363,198.96,198.93,21.8319483]
[1739284527273,1.4907,199.07,198.93,21.8319483]
[1739284527472,5.0231,199.05,198.96,21.8319483]
[1739284527678,5.0231,199.05,198.99,5.0245]
[1739284527977,1.4907,199.07,198.99,5.0245]
[1739284528176,5.0231,199.05,198.99,5.0245]
[1739284528372,5.05990482,199.05,199.01,0.03264389]
[1739284528872,5.0234,199.04,199.01,0.03264389]
[1739284529076,0.03680482,199.05,199.01,0.03264389]
[1739284529374,5.0238,199.02,199.01,0.03264389]
[1739284529575,0.03680482,199.05,199.01,0.03264389]
[1739284530272,0.03680482,199.05,198.9,21.8319483]
[1739284530477,1.4907,199.07,198.9,21.8319483]
[1739284531578,1.4907,199.07,198.97,5.0251]
[1739284531579,0.03833083,199.0,198.97,5.0251]
[1739284531881,5.0242,199.01,198.97,5.0251]
[1739284532072,0.03631058,199.0,198.97,5.0251]
[1739284532271,0.03631058,199.0,198.93,21.8319483]
[1739284532670,0.03631058,199.0,198.98,5.0247]
[1739284532878,0.03631058,199.0,198.93,21.8319483]
[1739284533177,0.03631058,199.0,198.9,5.0268]
[1739284533381,5.0259,198.94,198.87,21.8319483]
[1739284533675,3.0559,198.99,198.95,5.0255]
[1739284533881,5.0249,198.98,198.9,21.8319483]
[1739284534081,0.03711115,198.99,198.9,21.8319483]
[1739284534876,5.0254,198.96,198.9,21.8319483]
[1739284535180,3.0559,199.04,198.87,21.8319483]
[1739284535378,0.03681816,198.95,198.9,5.0268]
[1739284535577,5.0261,198.94,198.9,5.0268]
[1739284535784,21.8319483,199.02,198.87,21.8319483]
[1739284535980,0.03272437,198.94,198.84,21.8319483]
[1739284536179,5.0264,198.92,198.84,21.8319483]
[1739284536680,0.0356522,198.9,198.84,21.8319483]
[1739284537476,0.0356522,198.9,198.88,5.0272]
[1739284537983,0.0356522,198.9,198.85,5.0281]
[1739284538684,5.0625522,198.9,198.85,5.0281]
[1739284538886,5.0625522,198.9,198.81,21.8319483]
[1739284539085,0.0356522,198.9,198.85,21.8319483]
[1739284540077,0.0356522,198.9,198.89,5.0271]
[1739284541282,0.0356522,198.9,198.88,5.0273]
[1739284541986,0.0356522,198.9,198.89,5.0271]
[1739284542383,1.5145,198.98,198.94,5.0256]
[1739284542587,1.5145,198.98,198.88,21.8319483]
[1739284542788,3.0559,199.04,198.88,21.8319483]
[1739284543083,5.0243,199.01,198.96,5.0251]
[1739284543588,0.03764033,199.0,198.97,0.03574194]
[1739284543889,0.03764033,199.0,198.97,5.06074194]
[1739284544089,0.03764033,199.0,198.97,0.03574194]
[1739284545185,0.03764033,199.0,198.99,5.0246]
[1739284546384,1.5395,199.11,199.0,5.0243]
[1739284546889,5.0231,199.05,199.0,5.0243]
[1739284547084,1.5395,199.11,198.99,5.0245]
[1739284547387,21.8319483,199.09,198.91,3.1031]
[1739284547588,0.0374304,199.07,199.03,0.03476905]
[1739284547783,5.024,199.02,198.96,5.0251]
[1739284547984,0.03590262,199.07,198.91,3.1031]
[1739284548186,1.6125,199.08,198.97,0.0329712]
[1739284548492,0.03636109,199.01,198.97,0.0329712]
[1739284548689,5.06046109,199.01,198.97,5.0577712]
[1739284548889,0.03636109,199.01,198.97,5.0577712]
[1739284549090,5.0244,199.0,198.97,0.0329712]
[1739284549284,0.03636109,199.01,198.97,0.0329712]
[1739284549894,5.0248,198.98,198.97,0.0329712]
[1739284550596,0.03636109,199.01,198.97,0.0329712]
[1739284550793,5.0244,199.0,198.97,0.0329712]
[1739284550995,0.03636109,199.01,198.97,0.0329712]
[1739284551191,0.03636109,199.01,198.98,5.0248]
[1739284551796,0.03636109,199.01,198.99,5.0245]
[1739284553896,0.03636109,199.01,199.0,5.0243]
[1739284554791,21.8319483,199.17,199.06,5.0228]
[1739284554992,5.0217,199.11,199.01,21.8319483]
[1739284555298,4.7134,199.16,199.09,5.022]
[1739284555598,4.7134,199.16,199.01,21.8319483]
[1739284555996,0.03577911,199.1,199.07,0.03585929]
[1739284557494,0.03577911,199.1,199.07,5.05835929]
[1739284557695,0.03577911,199.1,199.07,0.03585929]
[1739284558396,4.7615,199.24,199.12,21.8319483]
[1739284558997,26.5934483,199.24,199.08,21.8319483]
[1739284559302,26.5934483,199.24,199.1,5.0216]
[1739284559496,0.03412063,199.18,199.14,0.03429941]
[1739284560302,0.03412063,199.18,199.14,21.86624771]
[1739284561098,0.03412063,199.18,199.15,5.0205]
[1739284561301,0.03412063,199.18,199.14,21.86624771]